[Event "Titled Tuesday Blitz November 07 Early 2023"]
[White "Skibbe, Willi"]
[Black "Grochal, Joey"]
[WhiteFideId "4682190"]
[BlackFideId "1019945"]
[WhiteElo "2170"]
[BlackElo "2466"]
[Result "0-1"]
[Round "3"]
[TimeControl "180+1"]
[Date "2023.11.07"]
[WhiteClock "0:00:00"]
[BlackClock "0:00:38"]
[Board "188"]

1. e4 {[%clk 0:02:59]}  e5 {[%clk 0:02:59]} 2. d4 {[%clk 0:02:58]}  exd4 {[%clk 0:02:59]} 3. Nf3 {[%clk 0:02:57]}  Nc6 {[%clk 0:02:59]} 4. Bc4 {[%clk 0:02:57]}  Nf6 {[%clk 0:02:58]} 5. e5 {[%clk 0:02:56]}  d5 {[%clk 0:02:58]} 6. Bb5 {[%clk 0:02:56]}  Ne4 {[%clk 0:02:57]} 7. Nxd4 {[%clk 0:02:56]}  Bd7 {[%clk 0:02:57]} 8. Bxc6 {[%clk 0:02:54]}  bxc6 {[%clk 0:02:57]} 9. f3 {[%clk 0:02:46]}  Ng5 {[%clk 0:02:55]} 10. O-O {[%clk 0:02:39]}  c5 {[%clk 0:02:48]} 11. Nb3 {[%clk 0:02:36]}  c6 {[%clk 0:02:37]} 12. f4 {[%clk 0:01:54]}  Ne4 {[%clk 0:02:36]} 13. f5 {[%clk 0:01:50]}  c4 {[%clk 0:02:21]} 14. Nd4 {[%clk 0:01:47]}  Bc5 {[%clk 0:02:22]} 15. Nc3 {[%clk 0:01:39]}  Nxc3 {[%clk 0:02:08]} 16. bxc3 {[%clk 0:01:37]}  O-O {[%clk 0:02:08]} 17. f6 {[%clk 0:01:30]}  Re8 {[%clk 0:02:01]} 18. Qh5 {[%clk 0:01:17]}  g6 {[%clk 0:02:01]} 19. Qh6 {[%clk 0:01:09]}  Bf8 {[%clk 0:02:01]} 20. Qg5 {[%clk 0:01:05]}  Qa5 {[%clk 0:01:38]} 21. Qg3 {[%clk 0:01:00]}  c5 {[%clk 0:01:27]} 22. Ne2 {[%clk 0:00:37]}  d4 {[%clk 0:01:26]} 23. Bf4 {[%clk 0:00:30]}  Bf5 {[%clk 0:01:11]} 24. cxd4 {[%clk 0:00:27]}  Bxc2 {[%clk 0:01:11]} 25. d5 {[%clk 0:00:20]}  Bd3 {[%clk 0:01:11]} 26. Rae1 {[%clk 0:00:20]}  Qxa2 {[%clk 0:01:02]} 27. e6 {[%clk 0:00:19]}  Bxe2 {[%clk 0:00:59]} 28. Rf2 {[%clk 0:00:16]}  Qb3 {[%clk 0:00:55]} 29. Rfxe2 {[%clk 0:00:13]}  Qxg3 {[%clk 0:00:54]} 30. hxg3 {[%clk 0:00:14]}  g5 {[%clk 0:00:44]} 31. Bxg5 {[%clk 0:00:12]}  Bd6 {[%clk 0:00:45]} 32. e7 {[%clk 0:00:09]}  Rab8 {[%clk 0:00:37]} 33. Bf4 {[%clk 0:00:00]}  Rb6 {[%clk 0:00:38]} 0-1


[Site "https://www.chess.com"]

[Event "Titled Tuesday Blitz November 07 Early 2023"]
[White "Sviridova, Vlada"]
[Black "Manukyan, Sargis V."]
[WhiteFideId "24109606"]
[BlackFideId "13303465"]
[WhiteElo "2260"]
[BlackElo "2457"]
[Result "0-1"]
[Round "3"]
[TimeControl "180+1"]
[Date "2023.11.07"]
[WhiteClock "0:00:00"]
[BlackClock "0:01:35"]
[Board "189"]

1. d4 {[%clk 0:03:00]}  Nf6 {[%clk 0:02:59]} 2. c4 {[%clk 0:03:01]}  c5 {[%clk 0:03:00]} 3. d5 {[%clk 0:03:00]}  e6 {[%clk 0:03:01]} 4. Nc3 {[%clk 0:03:00]}  exd5 {[%clk 0:03:02]} 5. cxd5 {[%clk 0:03:01]}  Bd6 {[%clk 0:03:02]} 6. Bg5 {[%clk 0:02:53]}  O-O {[%clk 0:03:02]} 7. e3 {[%clk 0:02:53]}  Re8 {[%clk 0:03:02]} 8. Bd3 {[%clk 0:02:48]}  a6 {[%clk 0:03:03]} 9. a4 {[%clk 0:02:48]}  Bc7 {[%clk 0:03:03]} 10. Nge2 {[%clk 0:02:20]}  d6 {[%clk 0:03:02]} 11. O-O {[%clk 0:02:15]}  Nbd7 {[%clk 0:03:02]} 12. Qc2 {[%clk 0:02:10]}  h6 {[%clk 0:03:01]} 13. Bh4 {[%clk 0:02:10]}  Rb8 {[%clk 0:03:01]} 14. Bg3 {[%clk 0:01:46]}  Ne5 {[%clk 0:02:43]} 15. Bf5 {[%clk 0:01:24]}  b5 {[%clk 0:02:40]} 16. axb5 {[%clk 0:01:20]}  axb5 {[%clk 0:02:41]} 17. Bxc8 {[%clk 0:00:52]}  Qxc8 {[%clk 0:02:42]} 18. Rfd1 {[%clk 0:00:49]}  Qb7 {[%clk 0:02:35]} 19. Nf4 {[%clk 0:00:34]}  Ra8 {[%clk 0:02:19]} 20. Nd3 {[%clk 0:00:29]}  Ned7 {[%clk 0:01:48]} 21. e4 {[%clk 0:00:19]}  b4 {[%clk 0:01:45]} 22. Rxa8 {[%clk 0:00:18]}  Rxa8 {[%clk 0:01:46]} 23. Ne2 {[%clk 0:00:17]}  Nxe4 {[%clk 0:01:46]} 24. Ndf4 {[%clk 0:00:16]}  Nef6 {[%clk 0:01:46]} 25. Nc1 {[%clk 0:00:12]}  Re8 {[%clk 0:01:45]} 26. Nb3 {[%clk 0:00:11]}  Nb6 {[%clk 0:01:39]} 27. Na5 {[%clk 0:00:10]}  Qa6 {[%clk 0:01:35]} 28. Nc6 {[%clk 0:00:08]}  Nbxd5 {[%clk 0:01:35]} 29. Nxd5 {[%clk 0:00:08]}  Nxd5 {[%clk 0:01:36]} 30. Qd2 {[%clk 0:00:03]}  Qxc6 {[%clk 0:01:35]} 31. h4 {[%clk 0:00:00]}  Nf6 {[%clk 0:01:35]} 0-1


[Site "https://www.chess.com"]

[Event "Titled Tuesday Blitz November 07 Early 2023"]
[White "Dragun, Kamil"]
[Black "Sailer, Mike"]
[WhiteFideId "1134167"]
[BlackFideId "2012901"]
[WhiteElo "2794"]
[BlackElo "2071"]
[Result "1-0"]
[Round "3"]
[TimeControl "180+1"]
[Date "2023.11.07"]
[WhiteClock "0:01:41"]
[BlackClock "0:00:12"]
[Board "191"]

1. d4 {[%clk 0:03:00]}  g6 {[%clk 0:02:58]} 2. c4 {[%clk 0:02:59]}  Bg7 {[%clk 0:02:58]} 3. Nf3 {[%clk 0:02:59]}  c5 {[%clk 0:02:53]} 4. d5 {[%clk 0:02:59]}  d6 {[%clk 0:02:52]} 5. Nc3 {[%clk 0:02:59]}  Nf6 {[%clk 0:02:52]} 6. e4 {[%clk 0:02:59]}  b5 {[%clk 0:02:52]} 7. cxb5 {[%clk 0:02:58]}  a6 {[%clk 0:02:51]} 8. a4 {[%clk 0:02:58]}  O-O {[%clk 0:02:51]} 9. Be2 {[%clk 0:02:56]}  axb5 {[%clk 0:02:48]} 10. Bxb5 {[%clk 0:02:55]}  Ba6 {[%clk 0:02:47]} 11. Nd2 {[%clk 0:02:55]}  Bxb5 {[%clk 0:02:44]} 12. Nxb5 {[%clk 0:02:56]}  Na6 {[%clk 0:02:37]} 13. O-O {[%clk 0:02:51]}  Nb4 {[%clk 0:02:30]} 14. Ra3 {[%clk 0:02:50]}  Qa5 {[%clk 0:02:08]} 15. Nc4 {[%clk 0:02:48]}  Qd8 {[%clk 0:02:02]} 16. Re1 {[%clk 0:02:47]}  Nd7 {[%clk 0:02:02]} 17. Bd2 {[%clk 0:02:41]}  Ne5 {[%clk 0:01:39]} 18. Nxe5 {[%clk 0:02:37]}  Bxe5 {[%clk 0:01:38]} 19. Bc3 {[%clk 0:02:36]}  Na6 {[%clk 0:00:53]} 20. Bxe5 {[%clk 0:02:35]}  dxe5 {[%clk 0:00:54]} 21. Rh3 {[%clk 0:02:30]}  f6 {[%clk 0:00:46]} 22. Qc2 {[%clk 0:02:27]}  Qb6 {[%clk 0:00:40]} 23. Qc4 {[%clk 0:02:26]}  Nb4 {[%clk 0:00:38]} 24. d6+ {[%clk 0:02:22]}  Kg7 {[%clk 0:00:37]} 25. dxe7 {[%clk 0:02:21]}  Rfe8 {[%clk 0:00:37]} 26. Rxh7+ {[%clk 0:01:57]}  Kxh7 {[%clk 0:00:37]} 27. Qf7+ {[%clk 0:01:58]}  Kh6 {[%clk 0:00:37]} 28. Re3 {[%clk 0:01:59]}  Qxb5 {[%clk 0:00:20]} 29. Rh3+ {[%clk 0:01:52]}  Kg5 {[%clk 0:00:20]} 30. Rg3+ {[%clk 0:01:53]}  Kf4 {[%clk 0:00:16]} 31. Qxf6+ {[%clk 0:01:50]}  Kxe4 {[%clk 0:00:16]} 32. Qf3+ {[%clk 0:01:41]}  Kd4 {[%clk 0:00:14]} 33. Rg4+ {[%clk 0:01:41]}  e4 {[%clk 0:00:12]} 34. Qxe4# {[%clk 0:01:41]} 1-0


[Site "https://www.chess.com"]

[Event "Titled Tuesday Blitz November 07 Early 2023"]
[White "Mendez Fortes, Eduardo Jesus"]
[Black "Samaganova, Aleksandra"]
[WhiteFideId "3502376"]
[BlackFideId "13800221"]
[WhiteElo "2660"]
[BlackElo "2325"]
[Result "0-1"]
[Round "3"]
[TimeControl "180+1"]
[Date "2023.11.07"]
[WhiteClock "0:01:05"]
[BlackClock "0:00:03"]
[Board "192"]

1. e4 {[%clk 0:02:26]}  c5 {[%clk 0:02:59]} 2. Nf3 {[%clk 0:02:25]}  e6 {[%clk 0:02:58]} 3. d4 {[%clk 0:02:23]}  cxd4 {[%clk 0:02:59]} 4. Nxd4 {[%clk 0:02:24]}  a6 {[%clk 0:02:59]} 5. c4 {[%clk 0:02:24]}  Qc7 {[%clk 0:02:52]} 6. Nc3 {[%clk 0:02:23]}  Nf6 {[%clk 0:02:51]} 7. Be2 {[%clk 0:02:22]}  b6 {[%clk 0:02:50]} 8. O-O {[%clk 0:02:22]}  Bb7 {[%clk 0:02:45]} 9. f3 {[%clk 0:02:21]}  d6 {[%clk 0:02:44]} 10. Be3 {[%clk 0:02:20]}  Nbd7 {[%clk 0:02:44]} 11. Qd2 {[%clk 0:02:20]}  Be7 {[%clk 0:02:39]} 12. Rfc1 {[%clk 0:02:21]}  O-O {[%clk 0:02:38]} 13. a4 {[%clk 0:02:21]}  Rfc8 {[%clk 0:02:11]} 14. a5 {[%clk 0:02:21]}  e5 {[%clk 0:01:59]} 15. Nf5 {[%clk 0:02:19]}  Bf8 {[%clk 0:01:59]} 16. axb6 {[%clk 0:02:17]}  Nxb6 {[%clk 0:01:58]} 17. b3 {[%clk 0:02:17]}  g6 {[%clk 0:01:56]} 18. Ng3 {[%clk 0:02:14]}  h5 {[%clk 0:01:54]} 19. Bg5 {[%clk 0:02:14]}  Nh7 {[%clk 0:01:49]} 20. Be3 {[%clk 0:02:13]}  Nf6 {[%clk 0:01:49]} 21. b4 {[%clk 0:02:13]}  Qd8 {[%clk 0:01:35]} 22. Qa2 {[%clk 0:02:00]}  h4 {[%clk 0:01:20]} 23. Nf1 {[%clk 0:01:59]}  Nh5 {[%clk 0:01:15]} 24. Rd1 {[%clk 0:01:59]}  Qc7 {[%clk 0:01:05]} 25. Rac1 {[%clk 0:01:57]}  Nf4 {[%clk 0:00:53]} 26. Bxf4 {[%clk 0:01:54]}  exf4 {[%clk 0:00:53]} 27. Nd5 {[%clk 0:01:48]}  Bxd5 {[%clk 0:00:50]} 28. exd5 {[%clk 0:01:49]}  h3 {[%clk 0:00:44]} 29. gxh3 {[%clk 0:01:46]}  Qd7 {[%clk 0:00:44]} 30. Qd2 {[%clk 0:01:44]}  Qxh3 {[%clk 0:00:41]} 31. Qxf4 {[%clk 0:01:43]}  Bh6 {[%clk 0:00:42]} 32. Qd4 {[%clk 0:01:39]}  Re8 {[%clk 0:00:23]} 33. Ng3 {[%clk 0:01:37]}  Be3+ {[%clk 0:00:22]} 34. Qxe3 {[%clk 0:01:37]}  Rxe3 {[%clk 0:00:23]} 35. c5 {[%clk 0:01:36]}  Nc8 {[%clk 0:00:14]} 36. c6 {[%clk 0:01:36]}  Ne7 {[%clk 0:00:12]} 37. Bf1 {[%clk 0:01:35]}  Qh4 {[%clk 0:00:09]} 38. c7 {[%clk 0:01:35]}  Rc8 {[%clk 0:00:08]} 39. Bxa6 {[%clk 0:01:34]}  Nf5 {[%clk 0:00:05]} 40. Kg2 {[%clk 0:01:12]}  Nxg3 {[%clk 0:00:03]} 41. hxg3 {[%clk 0:01:13]}  Qg5 {[%clk 0:00:02]} 42. Bxc8 {[%clk 0:01:10]}  Re2+ {[%clk 0:00:03]} 43. Kf1 {[%clk 0:01:08]}  Qe3 {[%clk 0:00:03]} 44. Rd2 {[%clk 0:01:05]}  Qf2# {[%clk 0:00:03]} 0-1


[Site "https://www.chess.com"]

[Event "Titled Tuesday Blitz November 07 Early 2023"]
[White "Minina, Veronika"]
[Black "Derjabin, Ilja"]
[WhiteFideId "4174780"]
[BlackFideId "14104768"]
[WhiteElo "2317"]
[BlackElo "2559"]
[Result "0-1"]
[Round "3"]
[TimeControl "180+1"]
[Date "2023.11.07"]
[WhiteClock "0:00:00"]
[BlackClock "0:00:08"]
[Board "195"]

1. Nf3 {[%clk 0:02:59]}  c5 {[%clk 0:02:58]} 2. g3 {[%clk 0:02:59]}  d5 {[%clk 0:02:56]} 3. c4 {[%clk 0:02:59]}  Nc6 {[%clk 0:02:57]} 4. cxd5 {[%clk 0:02:55]}  Qxd5 {[%clk 0:02:58]} 5. Bg2 {[%clk 0:02:56]}  Nf6 {[%clk 0:02:57]} 6. O-O {[%clk 0:02:56]}  Qh5 {[%clk 0:02:56]} 7. Nc3 {[%clk 0:02:41]}  Bh3 {[%clk 0:02:54]} 8. d4 {[%clk 0:02:25]}  Rd8 {[%clk 0:02:45]} 9. Qa4 {[%clk 0:02:16]}  cxd4 {[%clk 0:02:37]} 10. Nb5 {[%clk 0:02:01]}  Bxg2 {[%clk 0:02:34]} 11. Kxg2 {[%clk 0:01:59]}  e5 {[%clk 0:01:50]} 12. Nc7+ {[%clk 0:00:52]}  Kd7 {[%clk 0:01:48]} 13. Nb5 {[%clk 0:00:52]}  Bc5 {[%clk 0:01:33]} 14. b4 {[%clk 0:00:48]}  Bb6 {[%clk 0:01:31]} 15. Bb2 {[%clk 0:00:44]}  a6 {[%clk 0:01:23]} 16. Na3 {[%clk 0:00:43]}  Nd5 {[%clk 0:01:13]} 17. Nc4 {[%clk 0:00:40]}  Bc7 {[%clk 0:01:13]} 18. b5 {[%clk 0:00:32]}  axb5 {[%clk 0:01:10]} 19. Qxb5 {[%clk 0:00:33]}  Kc8 {[%clk 0:01:10]} 20. a4 {[%clk 0:00:28]}  e4 {[%clk 0:01:03]} 21. Nh4 {[%clk 0:00:23]}  Nf4+ {[%clk 0:00:43]} 22. Kh1 {[%clk 0:00:23]}  Qxe2 {[%clk 0:00:29]} 23. a5 {[%clk 0:00:21]}  Rd5 {[%clk 0:00:22]} 24. Nb6+ {[%clk 0:00:17]}  Bxb6 {[%clk 0:00:22]} 25. Qxe2 {[%clk 0:00:15]}  Nxe2 {[%clk 0:00:22]} 26. axb6 {[%clk 0:00:16]}  Kd7 {[%clk 0:00:19]} 27. f3 {[%clk 0:00:12]}  e3 {[%clk 0:00:17]} 28. Ng2 {[%clk 0:00:12]}  Re8 {[%clk 0:00:16]} 29. Rfe1 {[%clk 0:00:11]}  d3 {[%clk 0:00:14]} 30. Bxg7 {[%clk 0:00:11]}  Nb4 {[%clk 0:00:13]} 31. Ra7 {[%clk 0:00:09]}  Kc6 {[%clk 0:00:12]} 32. Raa1 {[%clk 0:00:07]}  d2 {[%clk 0:00:13]} 33. Red1 {[%clk 0:00:07]}  Nc2 {[%clk 0:00:10]} 34. Rab1 {[%clk 0:00:06]}  Ned4 {[%clk 0:00:10]} 35. Bh6 {[%clk 0:00:05]}  e2 {[%clk 0:00:08]} 36. Rxd2 {[%clk 0:00:06]}  e1=Q+ {[%clk 0:00:08]} 37. Nxe1 {[%clk 0:00:06]}  Rxe1+ {[%clk 0:00:08]} 38. Rxe1 {[%clk 0:00:06]}  Nxe1 {[%clk 0:00:09]} 39. Rb2 {[%clk 0:00:05]}  Ndxf3 {[%clk 0:00:08]} 40. h4 {[%clk 0:00:04]}  Rd1 {[%clk 0:00:08]} 41. Bf4 {[%clk 0:00:01]}  Nd3+ {[%clk 0:00:08]} 42. Kg2 {[%clk 0:00:00]}  Nfe1+ {[%clk 0:00:08]} 0-1


[Site "https://www.chess.com"]

[Event "Titled Tuesday Blitz November 07 Early 2023"]
[White "patzersame"]
[Black "Avazkhonov, Alikhon"]
[BlackFideId "14208504"]
[WhiteElo "2314"]
[BlackElo "2540"]
[Result "0-1"]
[Round "3"]
[TimeControl "180+1"]
[Date "2023.11.07"]
[WhiteClock "0:00:13"]
[BlackClock "0:00:31"]
[Board "197"]

1. e4 {[%clk 0:03:00]}  c5 {[%clk 0:02:55]} 2. Nf3 {[%clk 0:02:59]}  d6 {[%clk 0:02:56]} 3. d4 {[%clk 0:02:56]}  cxd4 {[%clk 0:02:56]} 4. Nxd4 {[%clk 0:02:57]}  Nf6 {[%clk 0:02:56]} 5. Nc3 {[%clk 0:02:57]}  a6 {[%clk 0:02:56]} 6. f3 {[%clk 0:02:57]}  e5 {[%clk 0:02:55]} 7. Nb3 {[%clk 0:02:56]}  Be6 {[%clk 0:02:55]} 8. Be3 {[%clk 0:02:56]}  h5 {[%clk 0:02:55]} 9. Bd3 {[%clk 0:02:56]}  Nbd7 {[%clk 0:02:54]} 10. O-O {[%clk 0:02:56]}  b5 {[%clk 0:02:52]} 11. f4 {[%clk 0:02:47]}  Ng4 {[%clk 0:02:33]} 12. Qe2 {[%clk 0:02:41]}  Nxe3 {[%clk 0:02:29]} 13. Qxe3 {[%clk 0:02:41]}  Bxb3 {[%clk 0:02:19]} 14. axb3 {[%clk 0:02:42]}  d5 {[%clk 0:02:19]} 15. Qf3 {[%clk 0:02:42]}  d4 {[%clk 0:02:10]} 16. fxe5 {[%clk 0:02:13]}  Nxe5 {[%clk 0:02:09]} 17. Qf5 {[%clk 0:02:11]}  Bd6 {[%clk 0:02:02]} 18. Nd5 {[%clk 0:01:59]}  g6 {[%clk 0:01:52]} 19. Qf6 {[%clk 0:01:45]}  Qxf6 {[%clk 0:01:40]} 20. Rxf6 {[%clk 0:01:46]}  Kd7 {[%clk 0:01:19]} 21. Nb6+ {[%clk 0:01:10]}  Ke7 {[%clk 0:01:19]} 22. Nd5+ {[%clk 0:00:59]}  Kd7 {[%clk 0:01:18]} 23. Nb6+ {[%clk 0:00:59]}  Ke7 {[%clk 0:01:18]} 24. Rxd6 {[%clk 0:01:00]}  Kxd6 {[%clk 0:01:17]} 25. Nxa8 {[%clk 0:01:01]}  Rxa8 {[%clk 0:01:11]} 26. Bxb5 {[%clk 0:01:00]}  Rc8 {[%clk 0:00:50]} 27. Rxa6+ {[%clk 0:00:58]}  Ke7 {[%clk 0:00:50]} 28. Bd3 {[%clk 0:00:52]}  Nxd3 {[%clk 0:00:50]} 29. cxd3 {[%clk 0:00:53]}  Rc1+ {[%clk 0:00:45]} 30. Kf2 {[%clk 0:00:51]}  Rc2+ {[%clk 0:00:46]} 31. Ke1 {[%clk 0:00:29]}  Rxb2 {[%clk 0:00:46]} 32. Ra4 {[%clk 0:00:28]}  Rxg2 {[%clk 0:00:40]} 33. Rxd4 {[%clk 0:00:29]}  Rxh2 {[%clk 0:00:41]} 34. b4 {[%clk 0:00:25]}  Rb2 {[%clk 0:00:41]} 35. Kd1 {[%clk 0:00:24]}  h4 {[%clk 0:00:38]} 36. Kc1 {[%clk 0:00:24]}  h3 {[%clk 0:00:38]} 37. e5 {[%clk 0:00:13]}  Rg2 {[%clk 0:00:31]} 0-1


[Site "https://www.chess.com"]

[Event "Titled Tuesday Blitz November 07 Early 2023"]
[White "Ardila, Oscar Humberto"]
[Black "Hirneise, Jens"]
[WhiteFideId "4404742"]
[BlackFideId "24614734"]
[WhiteElo "2312"]
[BlackElo "2532"]
[Result "0-1"]
[Round "3"]
[TimeControl "180+1"]
[Date "2023.11.07"]
[WhiteClock "0:00:08"]
[BlackClock "0:00:35"]
[Board "198"]

1. d4 {[%clk 0:02:59]}  g6 {[%clk 0:02:54]} 2. c4 {[%clk 0:02:59]}  Bg7 {[%clk 0:02:52]} 3. Nf3 {[%clk 0:02:59]}  f5 {[%clk 0:02:47]} 4. g3 {[%clk 0:02:54]}  Nf6 {[%clk 0:02:47]} 5. Bg2 {[%clk 0:02:54]}  O-O {[%clk 0:02:47]} 6. O-O {[%clk 0:02:54]}  d6 {[%clk 0:02:47]} 7. d5 {[%clk 0:02:54]}  c6 {[%clk 0:02:36]} 8. Nc3 {[%clk 0:02:53]}  Na6 {[%clk 0:02:35]} 9. Nd4 {[%clk 0:02:44]}  cxd5 {[%clk 0:02:31]} 10. cxd5 {[%clk 0:02:44]}  Bd7 {[%clk 0:02:29]} 11. Ne6 {[%clk 0:02:42]}  Bxe6 {[%clk 0:02:29]} 12. dxe6 {[%clk 0:02:43]}  Nc5 {[%clk 0:02:24]} 13. Be3 {[%clk 0:02:38]}  Nxe6 {[%clk 0:01:58]} 14. Bxb7 {[%clk 0:02:35]}  Rb8 {[%clk 0:01:58]} 15. Bd5 {[%clk 0:02:35]}  Nxd5 {[%clk 0:01:55]} 16. Qxd5 {[%clk 0:02:35]}  Qd7 {[%clk 0:01:53]} 17. Rab1 {[%clk 0:01:48]}  Rb7 {[%clk 0:01:49]} 18. Rfc1 {[%clk 0:01:45]}  Kh8 {[%clk 0:01:45]} 19. b3 {[%clk 0:01:41]}  f4 {[%clk 0:01:44]} 20. Bd2 {[%clk 0:01:32]}  fxg3 {[%clk 0:01:42]} 21. hxg3 {[%clk 0:01:33]}  Nd4 {[%clk 0:01:37]} 22. Be3 {[%clk 0:01:17]}  e6 {[%clk 0:01:36]} 23. Qe4 {[%clk 0:01:08]}  d5 {[%clk 0:01:33]} 24. Qd3 {[%clk 0:01:08]}  Nf5 {[%clk 0:01:24]} 25. Bf4 {[%clk 0:01:01]}  Rb4 {[%clk 0:01:13]} 26. Na4 {[%clk 0:00:47]}  Rd4 {[%clk 0:01:08]} 27. Qa6 {[%clk 0:00:47]}  e5 {[%clk 0:01:06]} 28. Bg5 {[%clk 0:00:45]}  Rg4 {[%clk 0:00:56]} 29. Nc5 {[%clk 0:00:40]}  Qf7 {[%clk 0:00:52]} 30. Ne6 {[%clk 0:00:33]}  Nxg3 {[%clk 0:00:48]} 31. Nxf8 {[%clk 0:00:25]}  Ne4+ {[%clk 0:00:41]} 32. Kh1 {[%clk 0:00:13]}  Nxf2+ {[%clk 0:00:37]} 33. Kh2 {[%clk 0:00:11]}  Rxg5 {[%clk 0:00:37]} 34. Qc8 {[%clk 0:00:08]}  Qf4# {[%clk 0:00:35]} 0-1


[Site "https://www.chess.com"]

[Event "Titled Tuesday Blitz November 07 Early 2023"]
[White "Krzywda, Andrzej"]
[Black "Barbot, Pierre"]
[WhiteFideId "1114565"]
[BlackFideId "663727"]
[WhiteElo "2499"]
[BlackElo "2310"]
[Result "1-0"]
[Round "3"]
[TimeControl "180+1"]
[Date "2023.11.07"]
[WhiteClock "0:00:41"]
[BlackClock "0:00:00"]
[Board "199"]

1. e4 {[%clk 0:03:00]}  c6 {[%clk 0:02:59]} 2. d4 {[%clk 0:03:00]}  d5 {[%clk 0:02:59]} 3. e5 {[%clk 0:03:01]}  Bf5 {[%clk 0:03:00]} 4. h4 {[%clk 0:03:01]}  h5 {[%clk 0:02:59]} 5. Bd3 {[%clk 0:03:02]}  Bxd3 {[%clk 0:02:59]} 6. Qxd3 {[%clk 0:03:03]}  Qa5+ {[%clk 0:02:59]} 7. Nd2 {[%clk 0:03:03]}  e6 {[%clk 0:02:57]} 8. Nf3 {[%clk 0:03:02]}  Nh6 {[%clk 0:02:49]} 9. O-O {[%clk 0:03:01]}  Nf5 {[%clk 0:02:48]} 10. Nb3 {[%clk 0:02:58]}  Qa6 {[%clk 0:02:45]} 11. Qd1 {[%clk 0:02:57]}  Be7 {[%clk 0:02:38]} 12. Bg5 {[%clk 0:02:48]}  Nd7 {[%clk 0:02:36]} 13. g3 {[%clk 0:02:46]}  f6 {[%clk 0:02:15]} 14. Bf4 {[%clk 0:02:40]}  Kf7 {[%clk 0:02:12]} 15. Re1 {[%clk 0:02:38]}  Rag8 {[%clk 0:01:59]} 16. Kh2 {[%clk 0:02:22]}  g5 {[%clk 0:01:40]} 17. exf6 {[%clk 0:02:22]}  gxf4 {[%clk 0:01:38]} 18. fxe7 {[%clk 0:02:22]}  fxg3+ {[%clk 0:01:36]} 19. fxg3 {[%clk 0:02:23]}  Rxg3 {[%clk 0:01:04]} 20. Ng5+ {[%clk 0:02:22]}  Rxg5 {[%clk 0:01:04]} 21. hxg5 {[%clk 0:02:22]}  Kxe7 {[%clk 0:01:00]} 22. Qe2 {[%clk 0:02:19]}  Qxe2+ {[%clk 0:00:52]} 23. Rxe2 {[%clk 0:02:20]}  Rg8 {[%clk 0:00:50]} 24. Rae1 {[%clk 0:02:20]}  Nf8 {[%clk 0:00:48]} 25. Rg2 {[%clk 0:02:16]}  Rg6 {[%clk 0:00:40]} 26. c3 {[%clk 0:02:16]}  Kd6 {[%clk 0:00:39]} 27. Nc5 {[%clk 0:02:15]}  b6 {[%clk 0:00:37]} 28. Nd3 {[%clk 0:02:15]}  Nh7 {[%clk 0:00:34]} 29. Nf4 {[%clk 0:02:12]}  Rxg5 {[%clk 0:00:32]} 30. Rxe6+ {[%clk 0:02:06]}  Kd7 {[%clk 0:00:32]} 31. Rxg5 {[%clk 0:02:03]}  Nxg5 {[%clk 0:00:33]} 32. Re5 {[%clk 0:02:03]}  Nf3+ {[%clk 0:00:33]} 33. Kh3 {[%clk 0:02:02]}  Nxe5 {[%clk 0:00:33]} 34. dxe5 {[%clk 0:02:02]}  Ne3 {[%clk 0:00:24]} 35. Kh4 {[%clk 0:01:59]}  Nd1 {[%clk 0:00:19]} 36. Kg5 {[%clk 0:01:56]}  Nxb2 {[%clk 0:00:17]} 37. Kf6 {[%clk 0:01:56]}  Nc4 {[%clk 0:00:16]} 38. e6+ {[%clk 0:01:57]}  Ke8 {[%clk 0:00:12]} 39. Nxh5 {[%clk 0:01:47]}  Nd6 {[%clk 0:00:12]} 40. Ng7+ {[%clk 0:01:45]}  Kd8 {[%clk 0:00:09]} 41. e7+ {[%clk 0:01:39]}  Kd7 {[%clk 0:00:09]} 42. Nh5 {[%clk 0:01:04]}  b5 {[%clk 0:00:09]} 43. Nf4 {[%clk 0:00:53]}  a5 {[%clk 0:00:09]} 44. Nd3 {[%clk 0:00:50]}  Ne8+ {[%clk 0:00:02]} 45. Kf7 {[%clk 0:00:50]}  Nd6+ {[%clk 0:00:02]} 46. Kf8 {[%clk 0:00:51]}  Ke6 {[%clk 0:00:02]} 47. Nc5+ {[%clk 0:00:42]}  Ke5 {[%clk 0:00:00]} 48. Nb7 {[%clk 0:00:41]} 1-0


[Site "https://www.chess.com"]